bitfinex-derivatives/quotes_ETHF0:USTF0_20250831
["timestamp","ask_amount","ask_price","bid_price","bid_amount"]
[1756660290268,0.2919,4478.8,4478.4,3.2078]
[1756660290467,0.4839,4479.2,4478.5,2.618252]
[1756660292065,0.4839,4479.1,4478.5,2.618252]
[1756660292265,0.192,4479.1,4478.5,2.618252]
[1756660292465,3.2078,4479.3,4478.5,2.618252]
[1756660292466,0.2919,4478.8,4478.5,2.618252]
[1756660292666,0.2919,4479.2,4478.5,2.618252]
[1756660292969,0.4839,4479.0,4478.5,2.618252]
[1756660293170,0.192,4479.5,4478.5,2.618252]
[1756660293371,0.4839,4479.4,4478.5,2.618252]
[1756660294371,0.4839,4479.3,4478.6,0.225]
[1756660295176,0.2919,4479.1,4478.9,3.2078]
[1756660295472,0.2919,4479.0,4478.9,3.2078]
[1756660296968,3.2078,4479.9,4478.9,3.2078]
[1756660296969,0.2919,4479.8,4478.9,3.2078]
[1756660297371,3.2078,4479.9,4478.9,3.2078]
[1756660297972,0.2933,4479.8,4478.9,3.2078]
[1756660298272,3.2078,4479.9,4478.9,3.2078]
[1756660298570,0.2933,4479.8,4478.9,3.2078]
[1756660298877,3.2078,4479.9,4478.9,3.2078]
[1756660299272,0.2933,4479.7,4478.9,3.2078]
[1756660299471,3.2078,4479.9,4478.9,3.2078]
[1756660299673,0.2933,4479.7,4478.9,3.2078]
[1756660299977,3.2078,4479.9,4478.9,3.2078]
[1756660300178,0.6326003,4479.8,4478.9,3.2078]
[1756660300379,3.2078,4479.9,4479.0,2.618252]
[1756660300576,0.2933,4479.7,4479.0,2.618252]
[1756660300774,3.2078,4479.9,4479.0,2.618252]
[1756660300975,0.2933,4479.7,4479.0,2.618252]
[1756660301179,3.2078,4479.9,4479.0,2.618252]
[1756660301383,0.2933,4479.7,4479.0,2.618252]
[1756660301578,0.2933,4479.8,4479.0,2.618252]
[1756660301775,0.63273412,4479.7,4479.0,2.618252]
[1756660301980,0.194,4479.5,4479.0,2.618252]
[1756660302182,0.194,4479.4,4479.0,2.618252]
[1756660302380,0.194,4479.3,4479.0,2.618252]
[1756660302682,3.2078,4479.9,4479.0,2.618252]
[1756660302873,0.63285185,4479.8,4479.0,2.618252]
[1756660303180,0.194,4479.5,4479.0,2.618252]
[1756660303575,0.2933,4479.3,4479.0,2.618252]
[1756660303772,3.2078,4479.9,4479.0,2.618252]
[1756660303973,0.2933,4479.7,4479.0,2.618252]
[1756660304172,0.4873,4479.5,4479.0,2.618252]
[1756660304372,0.194,4479.4,4479.0,2.618252]
[1756660304576,0.194,4479.3,4479.0,2.618252]
[1756660304782,0.2933,4479.8,4479.0,2.618252]
[1756660305082,0.2933,4479.6,4479.0,2.618252]
[1756660305282,0.194,4479.4,4479.0,2.618252]
[1756660305482,0.2933,4479.2,4479.0,2.618252]
[1756660305781,3.2078,4479.9,4479.0,2.618252]
[1756660305982,0.2933,4479.7,4479.0,2.618252]
[1756660306283,0.4873,4479.4,4479.0,2.618252]
[1756660306483,3.2078,4479.9,4479.0,2.618252]
[1756660306688,0.2933,4479.7,4479.0,2.618252]
[1756660306887,0.4873,4479.5,4479.0,2.618252]
[1756660307088,0.82773115,4479.4,4479.0,2.618252]
[1756660307290,0.2933,4479.2,4479.0,2.618252]
[1756660307588,0.225,4480.1,4479.0,2.618252]
[1756660307783,0.2933,4479.7,4479.0,2.618252]
[1756660308090,1.12132805,4479.6,4479.0,2.618252]
[1756660308287,0.2933,4479.4,4479.0,2.618252]
[1756660309183,0.63466432,4479.3,4479.0,2.618252]
[1756660309380,0.2933,4479.8,4479.0,2.618252]
[1756660309577,0.6346642,4479.7,4479.0,2.618252]
[1756660309779,1.1219642,4479.6,4479.0,2.618252]
[1756660309979,0.8286642,4479.5,4479.0,2.618252]
[1756660310181,0.8286642,4479.4,4479.0,2.618252]
[1756660310382,0.2933,4479.2,4479.0,2.618252]
[1756660311389,0.2933,4479.8,4479.0,2.618252]
[1756660311591,0.2933,4479.6,4479.0,2.618252]
[1756660311791,0.2933,4479.4,4479.0,2.618252]
[1756660311992,0.2933,4479.2,4479.0,2.618252]
[1756660313092,0.194,4479.2,4479.0,2.618252]
[1756660313291,0.2933,4479.1,4479.0,2.618252]
[1756660313491,0.2933,4479.1,4479.0,2.843252]
[1756660313894,0.2933,4479.8,4479.0,2.843252]
[1756660314094,0.63535442,4479.7,4479.0,2.843252]
[1756660314290,0.82935442,4479.6,4479.0,2.843252]
[1756660314491,0.2933,4479.4,4479.0,2.843252]
[1756660314691,0.2933,4479.2,4479.0,2.843252]
[1756660314989,0.63535442,4479.1,4479.0,2.843252]
[1756660316392,0.2933,4479.8,4479.0,7.066512]
[1756660316588,0.63615473,4479.7,4479.1,0.22324]
[1756660316790,0.63615473,4479.6,4479.2,0.225]
[1756660317095,0.2933,4479.4,4479.2,0.225]
[1756660317291,0.92945473,4479.3,4479.2,0.225]
[1756660318201,0.2933,4479.3,4479.2,0.225]
[1756660318392,0.92955612,4479.3,4479.2,0.225]
[1756660319202,0.2933,4479.3,4479.2,0.225]
[1756660319504,0.30918994,4479.3,4479.2,0.225]
[1756660320204,0.01588994,4479.3,4479.2,0.225]
[1756660320394,0.01588994,4479.3,4479.2,2.843252]
[1756660320704,0.1,4480.2,4479.2,6.843252]
[1756660321003,0.1,4480.2,4479.9,3.2078]
[1756660321206,0.1,4480.2,4480.0,0.225]
[1756660321704,0.3933,4480.2,4480.0,0.225]
[1756660322102,0.1,4480.2,4480.0,0.225]
[1756660323004,0.3933,4480.2,4480.0,0.225]
[1756660323207,0.2933,4480.1,4479.9,3.2078]
[1756660323401,0.2933,4480.1,4480.0,0.225]
[1756660323803,0.4873,4480.1,4480.0,0.225]
[1756660325309,0.4873,4480.1,4480.0,2.843252]
[1756660326206,0.4873,4480.1,4480.0,2.618252]
[1756660326602,0.4873,4480.1,4480.0,2.843252]
[1756660329809,0.4873,4480.1,4480.0,2.618252]
[1756660330313,4.4873,4480.1,4480.0,2.618252]
[1756660330514,5.12200917,4480.1,4480.0,2.618252]
[1756660334617,5.34700917,4480.1,4480.0,2.618252]
[1756660336813,0.2933,4481.2,4480.0,10.274262]
[1756660337112,3.6895,4481.4,4480.7,3.2078]
[1756660337317,3.6895,4481.4,4480.8,0.225]
[1756660338518,0.4817,4481.4,4480.8,0.225]
[1756660340419,3.2078,4481.9,4480.8,0.225]
[1756660340420,0.226,4482.2,4481.2,3.2078]
[1756660340607,0.5193,4482.3,4481.3,0.226]
[1756660340813,0.4817,4481.4,4481.3,0.226]
[1756660348516,0.2933,4481.4,4481.3,0.226]
[1756660348719,0.4817,4481.4,4481.3,0.226]
[1756660354022,0.1884,4480.8,4480.7,3.2078]
[1756660354223,0.4817,4480.8,4480.7,3.4328]
[1756660354424,0.2933,4481.6,4480.7,3.4328]
[1756660354725,0.4817,4481.4,4480.7,3.4328]
[1756660355522,0.4817,4481.3,4480.7,3.4328]
[1756660356525,0.4817,4481.3,4480.8,2.618252]
[1756660356825,3.2078,4481.7,4480.9,0.225]
[1756660357025,0.225,4482.4,4481.1,3.2078]
[1756660357026,0.2933,4482.0,4481.1,3.2078]
[1756660357226,0.4817,4481.3,4481.2,0.225]
[1756660360328,0.4817,4481.3,4481.2,2.843252]
[1756660365537,3.2078,4482.5,4481.2,2.843252]
[1756660365732,0.2888,4482.3,4481.2,2.843252]
[1756660365936,0.22312,4482.4,4481.2,2.843252]
[1756660366139,0.85773126,4482.3,4481.2,2.843252]
[1756660366342,0.63559292,4482.2,4481.2,2.843252]
[1756660366639,0.2888,4482.0,4481.2,2.843252]
[1756660366840,0.2888,4482.3,4481.2,2.843252]
[1756660367028,0.2888,4482.1,4481.2,2.843252]
[1756660367229,0.2888,4481.9,4481.2,2.843252]
[1756660367429,0.22312,4482.4,4481.2,2.843252]
[1756660367633,0.2888,4482.2,4481.2,2.843252]
[1756660367834,0.63561013,4482.1,4481.2,2.843252]
[1756660368032,0.2888,4481.9,4481.2,2.843252]
[1756660368236,0.1871,4481.7,4481.6,3.2078]
[1756660368434,0.4759,4481.7,4481.6,3.4338]
[1756660369840,0.4759,4481.7,4481.6,0.226]
[1756660372247,1.11157883,4481.7,4481.6,0.226]
[1756660372944,0.1871,4481.4,4481.3,1.434]
[1756660373145,0.4759,4481.4,4481.3,1.66]
[1756660373547,0.4759,4481.4,4481.3,1.434]
[1756660373736,0.1871,4481.0,4480.9,0.226]
[1756660374047,0.1871,4480.6,4480.5,3.2078]
[1756660374349,0.4759,4480.6,4480.5,3.2078]
[1756660374547,0.4759,4480.6,4480.5,3.4338]
[1756660374743,0.4759,4480.6,4480.5,3.2078]
[1756660375444,1.11138446,4480.6,4480.5,0.226]
[1756660375644,1.11138446,4480.6,4480.0,3.2078]
[1756660375844,0.4759,4480.1,4480.0,3.2078]
[1756660376039,0.4759,4480.1,4480.0,3.4338]
[1756660376749,0.4759,4480.1,4480.0,3.2078]
[1756660376946,0.4759,4480.1,4480.0,3.4338]
[1756660377447,0.1871,4480.1,4479.8,0.226]
[1756660377648,0.1871,4479.9,4479.8,0.226]
[1756660377846,0.4759,4479.9,4479.8,0.226]
[1756660378651,0.1871,4479.9,4479.4,3.2078]
[1756660378850,0.1871,4479.6,4479.5,0.226]
[1756660379150,0.2888,4479.6,4479.5,0.226]
[1756660379354,0.2888,4480.4,4479.5,0.226]
[1756660379544,0.2888,4480.2,4479.5,0.226]
[1756660379952,0.4759,4480.2,4479.5,0.226]
[1756660380447,0.2888,4480.1,4479.5,2.844252]
[1756660380644,0.4759,4480.1,4479.5,2.844252]
[1756660380845,1.2017374,4481.2,4479.5,2.844252]
[1756660380846,0.2888,4480.3,4479.9,3.2078]
[1756660381040,0.2888,4480.1,4480.0,0.226]
[1756660381241,0.4759,4480.1,4480.0,0.226]
[1756660382146,0.1871,4479.6,4479.5,2.618252]
[1756660382347,0.4759,4479.6,4479.5,2.844252]
[1756660383753,3.2078,4481.0,4479.5,2.844252]
[1756660383955,0.2888,4480.8,4479.5,2.844252]
[1756660384151,0.2888,4480.9,4479.5,2.844252]
[1756660384351,0.63362987,4480.8,4479.5,2.844252]
[1756660384551,0.2888,4480.9,4479.5,2.844252]
[1756660384753,0.2888,4480.7,4479.5,2.844252]
[1756660385349,0.2888,4480.9,4479.5,2.844252]
[1756660385555,0.2888,4480.7,4479.5,2.844252]
[1756660385756,3.2078,4481.0,4479.5,2.844252]
[1756660385956,0.2888,4480.8,4479.5,2.844252]
[1756660386157,3.2078,4481.0,4479.5,2.844252]
[1756660386457,0.2888,4480.8,4479.5,2.844252]
[1756660386754,3.2078,4481.0,4479.5,2.844252]
[1756660386954,0.63310709,4480.9,4479.5,2.844252]
[1756660387156,0.2888,4480.9,4479.5,2.844252]
[1756660387358,3.2078,4481.0,4479.5,2.844252]
[1756660387953,0.2764,4480.9,4479.5,2.844252]
[1756660388351,3.2078,4481.0,4479.5,2.844252]
[1756660389355,3.2078,4481.0,4479.9,3.2078]
[1756660389549,0.2764,4480.9,4480.0,0.226]
[1756660390262,3.2078,4481.0,4480.1,2.618252]
[1756660390856,0.2014,4480.2,4480.1,2.618252]
[1756660391151,0.4778,4480.2,4480.1,2.618252]
[1756660392355,0.2764,4480.2,4480.1,2.618252]
[1756660394160,3.4092,4481.0,4480.1,2.618252]
[1756660394361,3.2078,4481.0,4480.1,2.618252]
[1756660394561,0.2764,4480.9,4480.1,2.618252]
[1756660394761,3.2078,4481.0,4480.1,2.618252]
[1756660394962,0.2764,4480.9,4480.1,2.618252]
[1756660395359,3.2078,4481.0,4480.1,2.618252]
[1756660395663,0.2764,4480.8,4480.1,2.618252]
[1756660395862,0.4778,4480.8,4480.1,2.618252]
[1756660397360,0.2014,4480.8,4480.5,3.2078]
[1756660397564,0.2764,4481.6,4480.6,0.226]
[1756660400466,0.2764,4482.0,4480.7,2.618252]
[1756660400667,0.2014,4481.1,4481.0,3.2078]
[1756660400868,0.4778,4481.1,4481.0,3.4338]
[1756660402559,0.2764,4481.1,4481.0,3.4338]
[1756660402965,0.2764,4482.4,4481.0,3.4338]
[1756660403168,0.63400938,4482.3,4481.0,3.4338]
[1756660403367,0.85713938,4482.2,4481.0,3.4338]
[1756660403667,0.63400938,4482.1,4481.0,3.4338]
[1756660403868,0.2764,4481.9,4481.0,3.4338]
[1756660404059,0.2764,4481.7,4481.0,3.4338]
[1756660404260,0.2014,4481.6,4481.0,3.4338]
[1756660404460,0.2764,4481.4,4481.0,3.4338]
[1756660404662,3.2078,4482.5,4481.0,3.60940514]
[1756660404861,3.2078,4482.5,4481.1,0.22313]
[1756660404862,0.91051417,4482.4,4481.1,0.22313]
[1756660405156,3.2078,4482.5,4481.5,3.2078]
[1756660405157,0.2764,4482.2,4481.5,3.2078]
[1756660405364,0.2764,4482.2,4481.6,0.226]
[1756660405561,0.4778,4482.2,4481.6,0.226]
[1756660407066,0.2764,4482.9,4482.0,3.2078]
[1756660407257,0.2764,4482.9,4482.1,0.226]
[1756660410265,32.144,4483.5,4482.2,2.618252]
[1756660410467,0.22307001,4483.4,4482.2,2.618252]
[1756660410970,0.22307001,4483.3,4482.2,2.618252]
[1756660411268,0.4778,4482.3,4482.2,2.618252]
[1756660415159,3.2078,4483.1,4482.2,2.618252]
[1756660415373,0.2764,4483.0,4482.2,2.618252]
[1756660415671,0.2014,4482.3,4482.2,2.618252]
[1756660415876,0.4778,4482.3,4482.2,2.618252]
[1756660417371,0.2764,4482.3,4482.2,2.618252]
[1756660417670,0.4778,4482.3,4482.2,2.618252]
[1756660418670,3.2078,4483.1,4482.2,2.618252]
[1756660418671,0.2935,4483.0,4482.2,2.618252]
[1756660418980,3.43088,4483.1,4482.2,2.618252]
[1756660419165,0.2935,4483.0,4482.2,2.618252]
[1756660419368,3.43088,4483.1,4482.2,2.618252]
[1756660419674,0.2935,4483.0,4482.2,2.618252]
[1756660419868,0.4773,4482.3,4482.2,2.618252]
[1756660420670,0.2935,4483.0,4482.2,2.618252]
[1756660420872,0.4773,4482.3,4482.2,2.618252]
[1756660426882,0.2935,4482.3,4482.2,2.618252]
[1756660427482,0.4773,4482.3,4482.2,2.618252]
[1756660429384,0.2935,4482.3,4482.2,2.618252]
[1756660432993,3.2078,4483.6,4482.2,2.618252]
[1756660433287,0.4773,4482.4,4482.3,0.226]
[1756660438991,0.2935,4483.5,4482.3,0.226]
[1756660439187,0.63524667,4483.4,4482.3,0.226]
[1756660439394,0.92874667,4483.3,4482.3,0.226]
[1756660439595,0.63524667,4483.2,4482.3,0.226]
[1756660439795,0.2935,4483.0,4482.3,0.226]
[1756660440094,0.4773,4482.5,4482.4,2.618252]
[1756660442602,0.4773,4482.5,4482.4,2.843252]
[1756660443507,0.4773,4482.5,4482.4,2.618252]
[1756660453808,3.6851,4482.5,4482.4,2.618252]
[1756660454111,4.31933283,4482.5,4482.4,2.618252]
[1756660456509,1.11153283,4482.5,4482.4,2.618252]
[1756660461515,0.63423283,4482.5,4482.4,2.618252]
[1756660462317,1.11763283,4482.5,4482.4,2.618252]
[1756660470424,0.93513283,4482.5,4482.4,2.618252]
[1756660473024,1.11763283,4482.5,4482.4,2.618252]
[1756660474827,0.63423283,4482.5,4482.4,2.618252]
[1756660475126,0.4834,4483.5,4482.4,7.066342]
[1756660475332,0.63402224,4483.4,4482.7,3.2078]
[1756660475528,0.63402224,4483.3,4482.8,0.225]
[1756660475728,0.3009,4483.5,4482.8,0.225]
[1756660476033,0.63322138,4483.4,4482.8,0.225]
[1756660476332,0.3009,4483.5,4482.9,0.22305999]
[1756660476533,3.6912,4483.7,4483.0,0.225]
[1756660476733,0.3009,4483.5,4483.0,0.225]
[1756660477530,0.1825,4483.1,4483.0,0.225]
[1756660477733,0.4834,4483.1,4483.0,0.225]
[1756660478034,0.2964,4483.6,4483.0,0.225]
[1756660478235,0.2964,4483.4,4483.0,0.225]
[1756660478543,0.2964,4483.6,4483.0,0.225]
[1756660478839,0.1867,4483.2,4483.1,0.225]
[1756660479130,3.2078,4483.7,4482.9,0.225]
[1756660479336,0.2964,4483.5,4482.9,0.225]
[1756660480033,0.1867,4483.1,4483.0,0.225]
[1756660480232,0.4831,4483.1,4483.0,2.843252]
[1756660482038,0.4831,4483.1,4483.0,2.618252]
[1756660485639,3.2078,4483.2,4483.0,2.618252]
[1756660486034,3.2078,4483.2,4483.0,2.843252]
[1756660486630,0.2964,4483.5,4483.0,2.843252]
[1756660488442,0.2964,4483.4,4483.0,2.843252]
[1756660488640,0.2964,4483.3,4483.0,2.843252]
[1756660488834,0.225,4483.9,4483.0,2.843252]
[1756660489038,0.2964,4483.7,4483.0,2.843252]
[1756660489342,3.2078,4484.0,4483.0,2.843252]
[1756660489540,0.1867,4483.1,4483.0,2.843252]
[1756660489742,0.4831,4483.1,4483.0,2.843252]
[1756660490440,0.2964,4483.1,4483.0,2.843252]
[1756660496249,0.2964,4483.8,4483.0,2.843252]
[1756660496441,0.4831,4483.6,4483.0,2.843252]
[1756660496641,0.1867,4483.6,4483.0,2.843252]
[1756660496851,0.2964,4483.8,4483.0,2.843252]
[1756660497053,0.2964,4483.6,4483.0,2.843252]
[1756660497353,3.6909,4483.9,4483.0,2.843252]
[1756660497549,0.63228431,4483.8,4483.0,2.843252]
[1756660497752,0.4831,4483.8,4483.0,2.843252]
[1756660498251,0.2964,4483.8,4483.0,2.843252]
[1756660498450,0.1867,4483.8,4483.0,2.843252]
[1756660498650,0.4831,4483.7,4483.0,2.843252]
[1756660499151,0.4831,4483.6,4483.0,2.843252]
[1756660499862,0.1867,4483.6,4483.0,2.843252]
[1756660500156,0.2964,4483.3,4483.0,2.843252]
[1756660500553,3.2078,4483.9,4483.0,2.843252]
[1756660500752,0.2964,4483.7,4483.0,2.843252]
[1756660501056,0.2964,4483.8,4483.0,2.843252]
[1756660501256,0.2964,4483.6,4483.0,2.843252]
[1756660501451,0.2964,4483.8,4483.0,2.843252]
[1756660501647,0.2964,4483.6,4483.0,2.843252]
[1756660501852,0.1867,4483.5,4483.0,2.843252]
[1756660502056,0.2964,4483.4,4483.0,2.843252]
[1756660502462,0.2964,4483.9,4483.2,3.2078]
[1756660502766,0.4831,4483.7,4483.3,0.225]
[1756660503061,0.22303,4484.2,4483.3,0.225]
[1756660503252,0.2964,4484.0,4483.3,0.225]
[1756660503453,0.4831,4483.8,4483.3,0.225]
[1756660504348,0.2964,4483.7,4483.3,0.225]
[1756660504660,0.22303,4484.2,4483.3,0.225]
[1756660504848,0.2964,4484.0,4483.3,0.225]
[1756660505053,0.2964,4483.8,4483.3,0.225]
[1756660505248,0.1867,4483.8,4483.4,2.618252]
[1756660505461,0.2964,4483.6,4483.4,2.618252]
[1756660505656,0.2964,4483.5,4483.4,2.618252]
[1756660505851,3.43082,4484.3,4483.4,2.618252]
[1756660506055,0.2964,4484.1,4483.4,2.618252]
[1756660506258,0.63279324,4484.0,4483.4,2.618252]
[1756660506552,0.2964,4483.7,4483.4,2.618252]
[1756660506757,3.43082,4484.3,4483.4,2.618252]
[1756660507058,0.2964,4484.1,4483.4,2.618252]
[1756660507253,0.1867,4483.5,4483.4,2.618252]
[1756660507450,0.4831,4483.5,4483.4,2.618252]
[1756660508756,0.296,4484.2,4483.4,2.618252]
[1756660509058,0.63259954,4484.1,4483.4,2.618252]
[1756660509253,0.92859954,4484.0,4483.4,2.618252]
[1756660509464,3.2078,4484.3,4483.4,2.618252]
[1756660509465,0.296,4484.2,4483.4,2.618252]
[1756660509652,0.63252207,4484.1,4483.4,2.618252]
[1756660509850,0.4868,4484.2,4483.4,2.618252]
[1756660510055,0.296,4484.0,4483.4,2.618252]
[1756660510263,0.4868,4484.0,4483.4,2.618252]
[1756660512163,0.296,4484.0,4483.4,2.618252]
[1756660512565,0.296,4484.0,4483.7,3.2078]
[1756660512769,0.296,4484.6,4483.8,0.225]
[1756660512955,0.296,4484.4,4483.8,0.225]
[1756660513159,0.63231404,4484.5,4483.8,0.225]
[1756660513160,0.4868,4484.2,4483.8,0.225]
[1756660515266,0.4868,4484.2,4483.9,2.618252]
[1756660515469,0.296,4484.6,4483.9,2.618252]
[1756660515766,0.4868,4484.0,4483.9,2.618252]
[1756660518065,0.296,4484.6,4483.9,2.618252]
[1756660518369,0.63223509,4484.5,4483.9,2.618252]
[1756660518570,0.4868,4484.7,4483.9,2.618252]
[1756660518769,0.296,4484.5,4483.9,2.618252]
[1756660518970,0.4868,4484.5,4483.9,2.618252]
[1756660519169,0.296,4484.4,4483.9,2.618252]
[1756660519372,0.4868,4484.0,4483.9,2.843252]
[1756660519571,0.4868,4484.0,4483.9,2.618252]
[1756660521875,1.11906421,4484.0,4483.9,2.618252]
[1756660526069,1.34406421,4484.0,4483.9,2.618252]
[1756660526573,1.11906421,4484.0,4483.9,2.618252]
[1756660526971,0.63226421,4484.0,4483.9,2.618252]
[1756660527178,0.296,4484.1,4483.9,2.618252]
[1756660528474,3.2078,4484.7,4483.9,2.618252]
[1756660528475,0.296,4484.6,4483.9,2.843252]
[1756660528680,0.296,4484.4,4483.9,2.843252]
[1756660528884,0.296,4484.2,4483.9,2.843252]
[1756660529071,3.4328,4484.7,4483.9,2.843252]
[1756660529276,0.296,4484.5,4483.9,2.843252]
[1756660529583,0.296,4484.3,4483.9,2.843252]
[1756660529778,0.63263068,4484.2,4483.9,2.843252]
[1756660530682,0.1908,4484.1,4483.9,2.843252]
[1756660530983,0.296,4484.0,4483.9,2.843252]
[1756660531380,0.4868,4484.0,4483.9,2.843252]
[1756660533685,0.4868,4484.0,4483.9,2.618252]
[1756660533885,1.11967807,4484.0,4483.9,2.618252]
[1756660534981,5.56769807,4484.0,4483.9,0.77568538]
[1756660535181,5.56769807,4484.0,4482.7,0.2953]
[1756660535387,3.2078,4482.8,4482.7,0.493]
[1756660535588,3.84067807,4482.8,4482.7,0.493]
[1756660536590,3.84207807,4482.8,4482.7,0.493]
[1756660536884,3.84297807,4482.8,4482.7,0.493]
[1756660537289,3.2101,4482.8,4482.7,0.493]
[1756660537486,3.84094285,4482.8,4481.6,3.2078]
[1756660537691,0.85674285,4482.7,4481.7,0.2953]
[1756660537892,3.2089,4482.2,4482.1,0.4744]
[1756660538290,3.2078,4482.2,4482.1,0.4744]
[1756660538693,3.2089,4482.2,4482.1,0.2771]
[1756660539692,3.2089,4482.2,4481.2,0.2771]
[1756660539893,3.2089,4482.2,4482.1,0.4744]
[1756660540194,3.4328,4482.2,4482.1,0.4744]
[1756660540496,3.2078,4482.2,4482.1,0.4744]
[1756660541193,3.2089,4482.2,4482.1,0.4744]
[1756660541394,3.2089,4482.2,4481.2,0.2771]
[1756660541395,3.4339,4482.2,4481.2,0.2771]
[1756660541889,3.2078,4481.9,4481.2,0.2771]
[1756660542394,3.2078,4481.9,4481.2,0.4744]
[1756660542395,0.0011,4481.3,4481.2,0.4744]
[1756660543896,0.0011,4481.3,4481.2,3.092652]
[1756660544394,3.4328,4481.4,4481.3,0.4744]
[1756660544395,3.2078,4481.4,4481.3,0.4744]
[1756660544595,0.225,4481.5,4481.3,0.1973]
[1756660544795,0.2261,4481.5,4481.4,0.4744]
[1756660545293,0.2261,4481.5,4481.4,3.092652]
[1756660546499,3.2078,4481.6,4481.5,0.4744]
[1756660546795,3.4328,4481.6,4481.5,0.4744]
[1756660548095,3.4339,4481.6,4481.5,0.4744]
[1756660548695,3.4339,4481.6,4481.4,2.618252]
[1756660549092,3.4339,4481.6,4481.4,2.895352]
[1756660549393,3.4339,4481.6,4481.4,2.618252]
[1756660550288,3.4339,4481.6,4481.4,2.895352]
[1756660550493,3.4339,4481.6,4481.4,2.618252]
[1756660551592,7.4339,4481.6,4481.4,2.618252]
[1756660551891,4.62961918,4481.5,4481.4,2.618252]
[1756660552492,4.62851918,4481.5,4479.0,3.2078]
[1756660552691,3.3963,4479.9,4479.8,0.1973]
[1756660552892,3.8991,4479.9,4479.8,0.1973]
[1756660554491,3.8991,4479.9,4479.8,0.4744]
[1756660555289,0.2778,4479.8,4479.1,0.2771]
[1756660555593,3.2078,4479.9,4479.8,0.4744]
[1756660555791,3.4328,4479.9,4479.8,0.4744]
[1756660555993,3.6213,4479.9,4479.8,0.4744]
[1756660556488,3.4328,4479.9,4479.8,0.4744]
[1756660557892,3.3963,4480.4,4480.3,0.1973]
[1756660558191,3.8991,4480.4,4480.3,0.4744]
[1756660558397,3.6741,4480.4,4480.3,0.4744]
[1756660558898,3.8991,4480.4,4480.3,0.4744]
[1756660559098,3.2078,4480.4,4480.3,0.4744]
[1756660559294,3.4328,4480.4,4480.3,0.4744]
[1756660560195,3.2078,4480.4,4480.3,0.4744]
[1756660560397,0.225,4480.5,4480.3,0.4744]
[1756660560598,0.225,4480.5,4480.4,0.4744]
[1756660561094,0.4135,4480.5,4480.4,0.4744]
[1756660561501,0.4135,4480.5,4480.4,3.092652]
[1756660561798,0.225,4480.6,4480.5,0.4744]
[1756660562491,0.6913,4480.6,4480.5,0.4744]
[1756660562691,0.4135,4480.6,4480.4,2.618252]
[1756660562897,0.4664,4480.5,4480.4,2.618252]
[1756660563595,0.4664,4480.5,4480.4,2.895352]
[1756660564196,1.09597264,4480.5,4480.4,2.895352]
[1756660564602,1.09597264,4480.5,4480.4,2.618252]
[1756660567101,2.2989619,4480.5,4480.4,2.618252]
[1756660568003,2.5239619,4480.5,4480.4,2.618252]
[1756660569302,5.32097264,4480.5,4480.4,2.618252]
[1756660570499,8.52877264,4480.5,4480.4,2.618252]
[1756660571408,8.52877264,4480.5,4480.4,2.40054829]
[1756660572203,4.52877264,4480.5,4480.4,2.68364829]
[1756660572399,4.52877264,4480.5,4480.4,2.40054829]
[1756660573007,4.30377264,4480.5,4480.4,2.40054829]
[1756660573207,4.52877264,4480.5,4480.4,2.68364829]
[1756660573706,4.52877264,4480.5,4480.4,2.40054829]
[1756660574610,4.52877264,4480.5,4480.4,2.86774829]
[1756660575311,4.30377264,4480.5,4480.4,2.86774829]
[1756660575511,4.52877264,4480.5,4480.4,2.86774829]
[1756660578013,4.06237264,4480.5,4480.4,2.86774829]
[1756660578212,5.03876308,4480.5,4480.4,2.86774829]
[1756660578512,4.06237264,4480.5,4480.4,2.86774829]
[1756660580517,3.83737264,4480.5,4480.4,2.86774829]
[1756660580717,4.06237264,4480.5,4480.4,2.86774829]
[1756660581117,5.26376308,4480.5,4480.4,2.86774829]
[1756660582213,0.85457264,4480.5,4480.4,2.86774829]
[1756660584306,1.05487264,4480.5,4480.4,2.86774829]
[1756660584510,1.33287264,4480.5,4480.4,2.86774829]
[1756660585620,4.54067264,4480.5,4480.4,2.86774829]
[1756660586417,1.33287264,4480.5,4480.4,2.86774829]
[1756660587016,0.85457264,4480.5,4480.4,2.86774829]
[1756660588516,1.05487264,4480.5,4480.4,2.86774829]
[1756660588714,1.33377264,4480.5,4480.4,2.86774829]
[1756660590119,0.85457264,4480.5,4480.4,2.86774829]
[1756660594124,0.62957264,4480.5,4480.4,2.86774829]
[1756660594324,0.225,4480.7,4480.4,3.09274829]
[1756660594519,0.225,4480.8,4480.5,0.2831]
[1756660594717,0.225,4480.8,4480.7,0.1841]
[1756660594916,0.225,4480.8,4480.7,0.4672]
[1756660595317,0.225,4480.9,4480.8,0.4672]
[1756660595524,0.225,4481.0,4480.9,0.4672]
[1756660597519,0.225,4481.1,4480.9,0.1841]
[1756660597721,0.225,4481.1,4481.0,0.4672]
[1756660599032,35.3438,4481.8,4481.7,0.1895]
[1756660599234,36.19504685,4481.8,4481.7,0.4872]
[1756660599428,36.66754685,4481.8,4481.7,0.4872]
[1756660600233,36.66754685,4481.8,4481.7,2.88774829]
[1756660603233,33.45974685,4481.8,4481.7,2.88774829]
[1756660606635,33.45974685,4481.8,4481.7,2.40054829]
[1756660606935,33.45974685,4481.8,4481.7,2.18290953]
[1756660608738,37.45974685,4481.8,4480.7,0.2977]
[1756660608928,3.2078,4481.0,4480.7,0.2977]
[1756660609134,0.85124685,4480.9,4480.4,0.2977]